bitfinex/quotes_ETHUSD_20241023
["timestamp","ask_amount","ask_price","bid_price","bid_amount"]
[1729670936981,3.45332,2606.2,2605.6,4.6523]
[1729670937175,3.45332,2606.2,2605.6,1.6523]
[1729670937410,6.90673,2606.2,2605.6,1.6523]
[1729670937620,3.45332,2606.2,2605.6,1.6523]
[1729670937916,3.45364,2606.0,2605.7,0.07673579]
[1729670938115,3.45364,2606.0,2605.4,0.07674404]
[1729670938116,3.45363,2606.0,2605.4,0.07674404]
[1729670938316,3.45335,2606.2,2605.4,0.07674404]
[1729670938476,3.45335,2606.2,2605.6,3.45408]
[1729670938676,3.45309,2606.4,2605.7,0.07673844]
[1729670938878,6.90623,2606.4,2605.7,0.07673844]
[1729670939213,3.45309,2606.4,2605.7,3.53069844]
[1729670939515,3.45309,2606.4,2605.6,4.1525194]
[1729670939739,3.45325,2606.3,2605.6,3.454]
[1729670940291,0.512865,2606.7,2606.0,3.45346]
[1729670940292,3.965615,2606.7,2606.0,3.45346]
[1729670940497,1.6661,2606.9,2605.4,3.45436]
[1729670940498,3.45292,2606.5,2605.8,3.45372]
[1729670940682,3.45319,2606.3,2605.7,3.45386]
[1729670940900,3.45319,2606.3,2605.6,6.45402]
[1729670940901,3.45319,2606.3,2605.8,6.45382]
[1729670941134,3.45319,2606.3,2605.6,6.45402]
[1729670941297,3.45365,2606.0,2605.5,3.0]
[1729670941496,3.45365,2606.0,2605.2,5.0067]
[1729670941711,6.9073,2606.0,2605.3,6.53121422]
[1729670942025,3.45397,2605.7,2605.3,0.07674422]
[1729670942245,3.45397,2605.7,2605.0,3.4548]
[1729670942246,3.45417,2605.6,2605.0,3.4548]
[1729670942566,3.4538,2605.9,2605.2,3.45451]
[1729670942740,3.95389,2605.9,2604.9,0.64912672]
[1729670942948,3.95389,2605.9,2605.0,3.45489]
[1729670943083,3.95389,2605.9,2605.0,3.45479]
[1729670943084,3.45405,2605.7,2605.0,3.45479]
[1729670943288,3.45405,2605.7,2605.1,0.07675232]
[1729670943527,3.45405,2605.7,2605.1,3.0]
[1729670943735,3.849466,2605.7,2605.1,3.0]
[1729670944238,3.4541,2605.6,2605.1,3.0]
[1729670944391,3.849466,2605.7,2605.1,6.45468]
[1729670944740,3.95386,2605.9,2605.3,3.45448]
[1729670944888,3.45375,2605.9,2605.4,0.07675025]
[1729670945237,3.45391,2605.8,2605.2,3.45461]
[1729670945441,3.45378,2605.9,2605.0,3.0]
[1729670945752,3.45383,2605.8,2605.2,3.45462]
[1729670945888,3.45383,2605.8,2605.1,3.53150821]
[1729670946228,0.500108,2605.9,2605.3,3.45449]
[1729670946446,3.953808,2605.9,2605.3,3.45449]
[1729670946856,3.953808,2605.9,2605.2,3.45461]
[1729670946857,3.45399,2605.7,2605.2,3.45461]
[1729670947144,3.45357,2606.0,2605.4,3.45426]
[1729670947305,0.345319,2606.2,2605.7,3.45395]
[1729670947507,3.45346,2606.1,2605.5,3.45415]
[1729670947754,3.45346,2606.1,2605.5,6.9083]
[1729670948052,3.45346,2606.1,2605.5,3.45415]
[1729670948256,3.45346,2606.1,2605.6,3.45407]
[1729670948554,3.45343,2606.1,2605.5,3.45415]
[1729670948851,3.45346,2606.1,2605.5,3.45414]
[1729670949058,4.144131,2606.1,2605.5,3.45419]
[1729670949219,4.144131,2606.1,2605.3,3.45449]
[1729670949220,3.45378,2605.9,2605.3,3.45442]
[1729670949420,4.144181,2606.1,2605.4,0.07674431]
[1729670949734,4.144181,2606.1,2605.4,3.53108431]
[1729670950127,7.597741,2606.1,2605.5,3.45419]
[1729670950325,3.4536,2606.0,2605.6,0.07674252]
[1729670950561,3.45396,2605.7,2605.1,6.45466]
[1729670950762,3.45396,2605.7,2605.3,3.0]
[1729670951235,3.45371,2605.9,2604.7,3.45519]
[1729670951236,3.45457,2605.3,2604.7,3.45519]
[1729670951558,3.45457,2605.3,2604.4,2.32645122]
[1729670951559,3.45457,2605.3,2604.5,3.45548]
[1729670951856,1.6621,2605.8,2604.6,3.45541]
[1729670951857,3.45477,2605.1,2604.6,3.45541]
[1729670952219,6.90937,2605.2,2604.6,3.45541]
[1729670952439,6.90933,2605.2,2604.6,3.45541]
[1729670952609,3.45463,2605.2,2604.6,3.45541]
[1729670952955,3.45463,2605.2,2604.7,3.45518]
[1729670953309,3.45425,2605.5,2604.9,3.45493]
[1729670953655,3.45425,2605.5,2604.8,3.45511]
[1729670953656,3.45449,2605.4,2604.8,3.45511]
[1729670954038,0.690846,2605.5,2605.0,3.45489]
[1729670954243,0.690846,2605.5,2605.1,0.07676109]
[1729670954440,4.145156,2605.5,2605.1,0.07676109]
[1729670954644,3.45462,2605.2,2604.7,3.45523]
[1729670954829,6.90892,2605.4,2604.8,3.45515]
[1729670955030,3.45458,2605.3,2604.8,0.07676539]
[1729670955324,3.45467,2605.2,2604.7,3.45522]
[1729670955532,6.90965,2605.1,2604.6,3.0]
[1729670955731,0.52146321,2605.4,2604.6,3.0]
[1729670956031,3.45468,2605.2,2604.7,3.53197026]
[1729670956975,3.45468,2605.2,2604.6,3.0]
[1729670956976,3.4549,2605.0,2604.6,3.0]
[1729670957326,4.145858,2605.0,2604.4,1.5345]
[1729670957531,3.4551,2604.9,2604.4,3.0]
[1729670957840,5.660848,2605.0,2604.4,6.45559]
[1729670958056,3.45503,2604.9,2604.4,6.45559]
[1729670958591,11.32540712,2605.3,2604.7,3.45527]
[1729670958732,4.79970703,2605.2,2604.7,3.45527]
[1729670958931,4.79970703,2605.2,2604.8,3.45507]
[1729670958932,1.34506703,2605.2,2604.8,3.45507]
[1729670959349,1.34506703,2605.2,2604.9,3.45496]
[1729670959528,1.6038,2605.4,2604.9,3.45496]
[1729670959860,1.6038,2605.4,2604.9,3.45492]
[1729670960087,1.6038,2605.4,2605.0,3.45482]
[1729670960443,3.45423,2605.5,2605.0,3.45482]
[1729670960681,1.6231,2605.7,2605.1,3.53151122]
[1729670960849,1.6231,2605.7,2605.2,3.45462]
[1729670961045,6.37182471,2605.7,2605.2,3.45462]
[1729670961448,6.37182471,2605.7,2605.1,3.45475]
[1729670961652,3.45412,2605.6,2605.1,3.45475]
[1729670961887,3.45432,2605.5,2604.9,6.90996]
[1729670962061,6.90865,2605.5,2604.9,3.45494]
[1729670962265,7.5860426,2605.5,2604.9,3.45494]
[1729670962579,7.5860726,2605.5,2604.9,3.45494]
[1729670962779,3.45447,2605.4,2604.9,3.45494]
[1729670962987,4.1317126,2605.5,2604.9,3.45494]
[1729670963151,4.1317126,2605.5,2604.6,1.6041]
[1729670963152,0.6773926,2605.5,2604.7,3.4552]
[1729670963355,3.45457,2605.3,2604.8,3.45508]
[1729670963542,0.50936197,2605.4,2604.9,3.53171539]
[1729670963740,8.53124,2605.7,2604.9,3.53170539]
[1729670964055,3.45411,2605.6,2605.1,3.45468]
[1729670964252,3.45411,2605.6,2605.2,0.07675999]
[1729670964461,3.45409,2605.6,2605.2,0.07675999]
[1729670964989,5.07715,2605.7,2605.2,3.53130999]
[1729670965156,7.87000712,2605.9,2605.3,3.4544]
[1729670965482,3.45389,2605.8,2605.4,0.07675181]
[1729670965679,12.11178583,2605.9,2605.4,0.07675181]
[1729670965890,12.11177583,2605.9,2605.4,3.45435]
[1729670966194,8.65799583,2605.9,2605.4,3.45435]
[1729670966404,4.24176871,2605.9,2605.4,3.45435]
[1729670967454,4.24176871,2605.9,2605.3,3.45438]
[1729670967660,3.87812687,2605.8,2605.3,3.45438]
[1729670967890,3.45377,2605.9,2605.3,6.90879]
[1729670968107,1.6464,2606.1,2605.3,1.5109]
[1729670968295,3.45283,2606.6,2605.5,0.55]
[1729670968509,6.90567,2606.6,2606.1,3.4534]
[1729670968715,0.690567,2606.5,2606.0,3.45349]
[1729670968923,3.45283,2606.6,2606.0,6.90698]
[1729670969120,3.45283,2606.6,2606.0,3.45349]
[1729670969280,3.45264,2606.7,2606.0,6.90696]
[1729670969476,3.45286,2606.6,2606.0,6.90696]
[1729670969924,3.45257,2606.8,2606.2,3.45321]
[1729670970091,3.45257,2606.8,2606.3,3.45315]
[1729670970092,4.298354,2606.8,2606.3,3.45315]
[1729670971123,4.298354,2606.8,2606.4,0.07672207]
[1729670971285,4.298354,2606.8,2606.3,6.90623]
[1729670971286,4.298354,2606.8,2606.3,6.90617]
[1729670971484,0.845784,2606.8,2606.4,3.52973207]
[1729670971780,3.45233,2607.0,2606.5,3.4529]
[1729670972014,3.45233,2607.0,2606.6,0.07671707]
[1729670972180,3.45238,2606.9,2606.3,3.45307]
[1729670972507,3.45238,2606.9,2606.4,3.45302]
[1729670973180,3.45238,2606.9,2606.2,3.45328]
[1729670973422,3.797808,2606.8,2606.1,4.96431]
[1729670973633,3.797808,2606.8,2606.2,3.4532]
[1729670974130,3.4527,2606.7,2606.2,3.4532]
[1729670975019,0.345238,2606.8,2606.3,3.45314]
[1729670975219,0.345238,2606.8,2606.2,3.4532]
[1729670975526,3.45224,2607.0,2606.4,3.45293]
[1729670975727,7.86841712,2607.1,2606.4,3.45293]
[1729670975930,3.45237,2606.9,2606.4,6.90587]
[1729670976135,7.86841712,2607.1,2606.5,3.45281]
[1729670976429,3.45218,2607.1,2606.4,3.45297]
[1729670976600,3.45234,2607.0,2606.4,3.45297]
[1729670976806,6.90467,2607.0,2606.4,3.45297]
[1729670977209,6.90467,2607.0,2606.4,6.90593]
[1729670977210,3.45233,2607.0,2606.4,6.90593]
[1729670977429,3.45233,2607.0,2606.4,3.45296]
[1729670977631,4.91889512,2607.1,2606.2,3.45322]
[1729670977798,4.91889512,2607.1,2606.1,3.0]
[1729670977799,3.4528,2606.6,2606.1,3.0]
[1729670977985,3.4528,2606.6,2606.0,3.45347]
[1729670978187,3.45298,2606.5,2606.0,3.45347]
[1729670978425,3.45259,2606.8,2605.9,3.0]
[1729670978616,3.45282,2606.6,2606.0,3.45356]
[1729670978943,3.45282,2606.6,2606.1,3.45342]
[1729670979135,6.90537,2606.7,2606.1,3.45342]
[1729670979428,3.45283,2606.6,2606.1,3.45342]
[1729670979584,0.49188951,2607.0,2605.9,6.90722]
[1729670979585,3.45297,2606.5,2605.9,6.90722]
[1729670979786,3.45297,2606.5,2606.0,3.45355]
[1729670979992,3.45304,2606.4,2605.9,3.4536]
[1729670980247,6.90599,2606.5,2605.9,3.4536]
[1729670980442,3.45297,2606.5,2606.0,3.45356]
[1729670981554,3.45284,2606.6,2606.2,0.07672882]
[1729670982135,3.45264,2606.7,2606.2,0.07672882]
[1729670982336,3.45257,2606.8,2606.3,3.45317]
[1729670982535,3.45257,2606.8,2606.4,0.07672297]
[1729670983674,6.90497,2606.9,2606.4,0.07672297]
[1729670983985,3.45244,2606.9,2606.4,3.52972297]
[1729670984331,3.45245,2606.9,2606.4,3.453]
[1729670984732,3.45265,2606.7,2605.8,4.5309]
[1729670985149,3.45265,2606.7,2606.2,3.45329]
[1729670985367,6.90539,2606.7,2606.1,3.45336]
[1729670985567,3.45265,2606.7,2606.1,6.90672]
[1729670986195,6.90541,2606.7,2606.1,3.45335]
[1729670986774,3.45279,2606.6,2606.1,3.45335]
[1729670987172,3.45265,2606.7,2606.1,3.45335]
[1729670987353,6.90538,2606.7,2606.2,3.45327]
[1729670987996,3.45287,2606.6,2606.0,3.45345]
[1729670988789,3.45287,2606.6,2605.9,3.4536]
[1729670988790,3.45287,2606.6,2606.1,3.45342]
[1729670988988,3.45303,2606.4,2605.9,3.4536]
[1729670989303,3.45303,2606.4,2605.8,1.5309]
[1729670989508,1.5618,2606.6,2605.4,1.5017]
[1729670989509,3.44804985,2606.0,2605.4,1.5017]
[1729670989660,3.45376,2605.9,2605.4,4.95602]
[1729670989861,3.45383,2605.8,2605.4,1.5017]
[1729670990075,3.45373,2605.9,2605.4,1.5017]
[1729670990269,3.45373,2605.9,2605.4,4.95604]
[1729670990701,3.45373,2605.9,2605.4,3.45434]
[1729670991183,3.45373,2605.9,2605.5,0.07674854]
[1729670991383,3.45357,2606.0,2605.5,3.53096854]
[1729670991965,1.6188,2607.2,2605.9,3.44804985]
[1729670992205,1.6188,2607.2,2606.3,3.45308]
[1729670992501,5.07079,2607.2,2606.6,3.45264]
[1729670992705,5.07079,2607.2,2606.6,3.45269]
[1729670993096,5.07079,2607.2,2606.6,6.90538]
[1729670993277,5.07079,2607.2,2606.6,3.45269]
[1729670993473,1.6188,2607.2,2606.7,0.07671071]
[1729670993773,1.6188,2607.2,2606.8,3.45249]
[1729670994104,1.6188,2607.2,2606.9,0.07671064]
[1729670996309,1.6188,2607.2,2606.8,3.45241]
[1729670996720,1.6188,2607.2,2606.3,3.0]
[1729670996721,3.45211,2607.1,2606.3,3.0]
[1729670997024,3.45239,2606.9,2606.3,6.90614]
[1729670997222,3.45211,2607.1,2606.6,3.45274]
[1729670997396,3.45211,2607.1,2606.7,0.07671751]
[1729670998498,3.45193,2607.3,2606.8,3.45243]
[1729670999320,3.45193,2607.3,2606.8,3.45242]
[1729670999855,0.60045794,2607.5,2607.1,3.45203]
[1729671000018,0.60045794,2607.5,2606.9,1.888742]
[1729671000019,0.60045794,2607.5,2607.3,3.45172]
[1729671000214,3.45118,2607.8,2607.2,3.45188]
[1729671000418,3.45118,2607.8,2607.3,3.45184]
[1729671001057,3.45142,2607.7,2607.2,3.45188]
[1729671001355,6.90244,2607.8,2607.2,3.45188]
[1729671001541,3.45134,2607.7,2607.2,3.45188]
[1729671001743,0.690252,2607.7,2606.9,4.5435]
[1729671001943,3.45144,2607.6,2607.0,3.45222]
[1729671002143,3.45144,2607.6,2607.0,3.52892621]
[1729671002350,6.90298,2607.6,2607.0,3.52892621]
[1729671002658,6.90252,2607.8,2607.0,3.45217]
[1729671002861,6.90252,2607.8,2607.2,3.4519]
[1729671003022,3.45126,2607.8,2607.2,3.4519]
[1729671003360,3.45097,2608.0,2607.2,0.690405]
[1729671003534,3.45105,2607.9,2607.4,3.45163]
[1729671003963,3.45097,2608.0,2607.3,3.45184]
[1729671004163,3.45097,2608.0,2607.4,3.45164]
[1729671004857,3.45097,2608.0,2607.3,3.45184]
[1729671005064,1.6298,2608.1,2606.8,3.0]
[1729671005296,1.6298,2608.1,2607.6,3.45143]
[1729671005420,0.01,2609.0,2607.7,0.07668517]
[1729671005618,6.90012,2608.7,2608.1,3.45076]
[1729671005865,6.90012,2608.7,2608.1,3.4507]
[1729671005866,4.296992,2608.7,2608.1,3.4507]
[1729671006069,4.296992,2608.7,2608.2,3.52731426]
[1729671006282,0.846972,2608.7,2608.2,3.52731426]
[1729671006608,1.5696,2608.9,2608.2,0.07667426]
[1729671006874,1.5696,2608.9,2608.0,1.6254]
[1729671006875,3.44973,2608.9,2608.3,3.45052]
[1729671007018,3.44954,2609.1,2608.1,3.45072]
[1729671007019,4.4110883,2609.2,2608.1,3.45071]
[1729671007219,1.629,2609.3,2607.4,4.25363122]
[1729671007220,3.45064,2608.3,2607.7,3.45124]
[1729671007428,3.45061,2608.3,2607.7,3.45124]
[1729671007647,3.45057,2608.3,2607.7,3.45122]
[1729671007828,4.4110883,2608.6,2607.6,3.0]
[1729671008053,3.45131,2607.7,2607.2,3.45188]
[1729671008223,3.4513,2607.8,2607.3,3.52853549]
[1729671008558,3.45127,2607.8,2607.3,0.07669549]
[1729671008762,3.45127,2607.8,2607.1,0.07669491]
[1729671009264,6.90255,2607.8,2607.1,3.52872491]
[1729671009424,3.45127,2607.8,2607.2,3.45195]
[1729671009626,6.90254,2607.8,2607.3,0.07669495]
[1729671010251,3.45127,2607.8,2607.3,0.07669495]
[1729671010455,7.8616783,2608.3,2607.7,3.4513]
[1729671010656,7.8616783,2608.3,2607.3,0.07669495]
[1729671010657,5.35557613,2608.3,2607.3,3.45184]
[1729671010872,3.45115,2607.9,2607.3,3.45176]
[1729671011159,3.45115,2607.9,2607.3,6.90348]
[1729671011465,3.45115,2607.9,2607.3,3.45172]
[1729671011664,3.45113,2607.9,2607.3,6.90348]
[1729671011829,3.45084,2608.1,2607.3,3.45172]
[1729671012029,3.45084,2608.1,2607.4,3.52827796]
[1729671012378,3.45099,2608.0,2607.4,3.52827796]
[1729671013561,3.45079,2608.1,2607.6,3.45135]
[1729671014143,3.45059,2608.3,2607.7,3.5279331]
[1729671014467,1.5832,2608.4,2607.7,0.0766831]
[1729671014668,1.5832,2608.4,2607.3,0.43777217]
[1729671014669,4.4110883,2608.3,2607.3,3.0]
[1729671014870,4.4110883,2608.0,2607.3,3.0]
[1729671015039,4.4110883,2608.0,2607.1,3.0]
[1729671015387,3.45137,2607.7,2607.0,1.6339]
[1729671015675,6.90276,2607.7,2607.1,6.52871664]
[1729671015828,3.45153,2607.6,2607.1,3.07669664]
[1729671016028,3.45137,2607.7,2607.1,3.07669664]
[1729671016029,3.45159,2607.5,2607.1,3.07669664]
[1729671016687,3.45159,2607.5,2607.0,5.08605]
[1729671017164,7.8620383,2608.0,2607.2,3.45188]
[1729671017165,3.45125,2607.8,2607.2,3.45188]
[1729671017370,3.45125,2607.8,2607.0,5.08607]
[1729671017371,3.45152,2607.6,2607.0,5.08607]
[1729671017541,3.45152,2607.6,2607.0,5.08605]
[1729671017752,4.99075,2608.1,2607.1,0.07669788]
[1729671017753,4.5399,2608.1,2607.1,0.07669788]
[1729671018054,4.5399,2608.1,2607.1,3.45198]
[1729671018055,3.45143,2607.7,2607.1,3.45198]
[1729671018268,3.45143,2607.7,2607.0,1.6339]
[1729671018429,3.45131,2607.8,2607.2,3.45197]
[1729671018629,1.5399,2608.1,2607.3,0.07669475]
[1729671018874,3.45125,2607.8,2607.3,3.45183]
[1729671019232,3.45125,2607.8,2607.0,1.6339]
[1729671019233,3.45139,2607.7,2607.0,5.0861]
[1729671019429,3.45148,2607.6,2607.1,6.45208]
[1729671019656,3.45158,2607.5,2607.1,3.0]
[1729671020031,3.45172,2607.4,2607.0,1.6339]
[1729671020467,7.8620583,2608.0,2606.8,3.45238]
[1729671020658,3.45165,2607.5,2606.9,3.45229]
[1729671020829,3.45171,2607.4,2606.9,3.45236]
[1729671021443,3.45146,2607.6,2606.7,1.5299]
[1729671021630,3.45146,2607.6,2607.1,3.45209]
[1729671021830,3.45131,2607.7,2607.0,3.45217]
[1729671022034,6.90271,2607.7,2607.1,3.45204]
[1729671022269,3.45113,2607.9,2607.2,0.07669585]
[1729671022480,3.45131,2607.7,2607.1,3.45204]
[1729671022878,3.45146,2607.6,2607.1,6.90407]
[1729671023044,3.45146,2607.6,2606.7,1.5299]
[1729671023248,3.45166,2607.5,2606.7,1.5299]
[1729671023491,3.45166,2607.5,2607.0,3.45215]
[1729671023978,6.90333,2607.5,2607.0,3.45215]
[1729671024146,3.45166,2607.5,2607.0,6.90432]
[1729671024348,3.45136,2607.7,2607.1,3.45208]
[1729671024566,3.45159,2607.5,2607.0,4.142582]
[1729671024940,6.90326,2607.5,2607.0,4.142582]
[1729671025139,3.45179,2607.4,2606.9,3.0]
[1729671025518,3.45159,2607.5,2607.0,3.45221]
[1729671026541,3.45159,2607.5,2607.1,0.07670133]
[1729671026780,6.90282,2607.7,2607.1,3.52872133]
[1729671026941,3.45146,2607.6,2607.1,0.07670133]
[1729671027145,3.45171,2607.4,2606.9,6.45237]
[1729671027337,3.45193,2607.3,2606.9,3.0]
[1729671028150,3.45194,2607.3,2606.7,4.98247]
[1729671028357,3.45211,2607.1,2606.7,1.5299]
[1729671028882,3.45211,2607.1,2606.4,3.45295]
[1729671028883,3.45225,2607.0,2606.4,4.98465]
[1729671029095,3.45211,2607.1,2606.4,5.483115]
[1729671029096,3.45223,2607.1,2606.4,5.483115]
[1729671029300,3.4522,2607.1,2606.4,2.030165]
[1729671029502,3.45237,2607.0,2606.5,3.07671711]
[1729671029861,1.557,2607.4,2606.8,3.45243]
[1729671029862,3.45173,2607.4,2606.8,3.45243]
[1729671030062,3.45173,2607.4,2606.9,0.07670731]
[1729671030063,3.45191,2607.3,2606.9,0.07670731]
[1729671030261,3.45173,2607.4,2606.9,0.07670731]
[1729671030504,3.45166,2607.5,2607.0,3.45221]
[1729671030659,3.45184,2607.3,2606.7,3.45256]
[1729671030865,3.45184,2607.3,2606.7,6.90508]
[1729671031173,3.45205,2607.2,2606.7,3.45252]
[1729671031558,3.45184,2607.3,2606.7,3.45252]
[1729671031762,3.45218,2607.1,2606.6,0.07670874]
[1729671032004,3.45194,2607.3,2606.7,3.45253]
[1729671032307,3.45188,2607.3,2606.8,3.52912311]
[1729671032464,3.45207,2607.2,2606.6,6.90539]
[1729671032801,5.00834,2607.7,2606.7,0.07670976]
[1729671032802,3.45181,2607.4,2606.7,0.07670976]
[1729671032989,3.452,2607.2,2606.7,3.45261]
[1729671033208,3.452,2607.2,2606.6,3.45269]
[1729671033507,3.452,2607.2,2606.8,3.45249]
[1729671033803,6.90406,2607.2,2606.6,3.45269]
[1729671034032,3.45216,2607.1,2606.6,6.90538]
[1729671034307,3.452,2607.2,2606.7,3.45257]
[1729671034491,3.452,2607.2,2606.7,4.143096]
[1729671035309,3.452,2607.2,2606.7,3.45257]
[1729671036370,3.45181,2607.4,2606.9,5.04166]
[1729671036607,3.45181,2607.4,2606.9,5.11836865]
[1729671036996,6.90308,2607.6,2607.0,3.45216]
[1729671037182,3.45153,2607.6,2607.0,3.5288691]
[1729671037384,3.45132,2607.7,2607.2,3.45188]
[1729671037582,3.45132,2607.7,2607.3,0.07669934]
[1729671038211,3.45132,2607.7,2607.1,3.45211]
[1729671038865,3.45132,2607.7,2607.2,3.45197]
[1729671039070,3.45132,2607.7,2607.3,0.07669942]
[1729671039322,3.45129,2607.8,2607.3,3.52850942]
[1729671039603,3.45118,2607.8,2607.4,3.45163]
[1729671040023,3.45131,2607.7,2607.0,6.45214]
[1729671040201,3.45168,2607.5,2606.9,5.04159]
[1729671040399,3.45168,2607.5,2607.0,3.45222]
[1729671040582,3.45145,2607.6,2607.1,3.45203]
[1729671040994,3.45144,2607.7,2607.2,3.45185]
[1729671041513,3.45151,2607.6,2607.1,3.45203]
[1729671041675,3.45151,2607.6,2606.9,5.0416]
[1729671041676,6.90301,2607.6,2606.9,5.0416]
[1729671041876,3.45165,2607.5,2606.9,5.0416]
[1729671042076,3.45185,2607.3,2606.8,3.0]
[1729671042275,3.45167,2607.5,2606.9,0.07671076]
[1729671042510,3.45166,2607.5,2606.9,6.90454]
[1729671042675,3.45166,2607.5,2606.9,3.45227]
[1729671042676,3.45184,2607.3,2606.9,3.45227]
[1729671042870,2.57967868,2607.7,2606.9,3.45227]
[1729671043100,8.44768,2607.7,2607.1,3.45201]
[1729671043302,1.5449,2607.7,2606.9,3.4523]
[1729671043571,3.45168,2607.5,2606.9,3.4523]
[1729671043777,3.45168,2607.5,2606.7,3.45255]
[1729671044098,3.45182,2607.4,2606.9,3.45228]
[1729671044274,3.45173,2607.4,2606.9,3.45228]
[1729671045400,3.45173,2607.4,2607.0,0.07670857]
[1729671045609,3.45188,2607.3,2606.7,6.45251]
[1729671045783,3.45188,2607.3,2606.7,3.0]
[1729671046087,3.45188,2607.3,2606.8,3.45243]
[1729671046409,3.45208,2607.2,2606.6,3.45268]
[1729671046614,3.44527678,2607.4,2606.6,3.45268]
[1729671046615,6.89704678,2607.4,2606.6,3.45268]
[1729671046778,6.89704678,2607.4,2606.8,3.4525]
[1729671046779,3.45185,2607.3,2606.8,3.4525]
[1729671047174,1.5449,2607.7,2607.1,3.45209]
[1729671047533,1.5449,2607.7,2606.9,0.07671749]
[1729671047534,3.45152,2607.6,2606.9,0.07671749]
[1729671047820,6.90308,2607.6,2607.0,3.45214]
[1729671048173,3.45152,2607.6,2607.0,3.45214]
[1729671048370,6.90303,2607.6,2607.0,6.9043]
[1729671048576,6.90303,2607.6,2606.7,0.07670868]
[1729671048577,3.45239,2606.9,2606.7,0.07670868]
[1729671048770,3.45239,2606.9,2606.4,0.07672622]
[1729671049011,3.4525,2606.8,2606.2,4.96785]
[1729671049218,6.89797678,2606.7,2606.2,1.5146]
[1729671049381,3.44527678,2606.7,2606.2,1.5146]
[1729671049582,3.44527678,2606.7,2605.7,4.64194326]
[1729671049583,1.5832,2606.6,2605.8,0.79195122]
[1729671049787,1.5832,2606.6,2605.5,1.5146]
[1729671049788,6.89884678,2606.0,2605.5,1.5146]
[1729671050023,3.45338,2606.2,2605.6,0.07675177]
[1729671050189,3.45338,2606.2,2605.6,3.53081177]
[1729671050589,6.90675,2606.2,2605.6,3.53081177]
[1729671050791,3.45337,2606.2,2605.6,3.53081177]
[1729671051121,3.44527678,2606.3,2605.7,3.45387]
[1729671051422,6.89852678,2606.3,2605.7,3.45387]
[1729671051921,1.5832,2606.6,2606.0,3.45347]
[1729671051922,8.48131678,2606.6,2606.0,3.45347]
[1729671052296,6.89811678,2606.6,2606.1,3.45341]
[1729671052496,6.89811678,2606.6,2606.0,3.45353]
[1729671052817,6.89811678,2606.6,2606.1,3.53015421]
[1729671053211,3.44527678,2606.6,2606.1,3.53015421]
[1729671053379,3.45258,2606.8,2606.3,1.611]
[1729671054296,6.90519,2606.8,2606.3,1.611]
[1729671054917,3.45272,2606.7,2606.3,1.611]
[1729671055130,3.45258,2606.8,2606.3,1.611]
[1729671055307,3.45265,2606.7,2606.3,1.611]
[1729671056726,3.45278,2606.6,2606.3,1.611]
[1729671056880,3.45278,2606.6,2606.1,3.80635542]
[1729671057313,5.05727678,2606.9,2606.1,3.80635542]
[1729671057477,3.45284,2606.6,2606.1,3.80635542]
[1729671057988,3.45284,2606.6,2606.2,1.5621]
[1729671057989,3.45279,2606.6,2606.2,1.5621]
[1729671058309,3.45284,2606.6,2606.2,1.5621]
[1729671058620,6.89792678,2606.7,2606.2,1.5621]
[1729671058918,3.45291,2606.5,2606.2,1.5621]
[1729671059117,3.45278,2606.6,2606.0,3.45355]
[1729671059318,6.90568,2606.6,2606.0,3.45355]
[1729671059485,6.90562,2606.6,2606.0,3.45355]
[1729671060013,3.45278,2606.6,2606.1,3.45341]
[1729671060207,3.45278,2606.6,2606.1,3.4534]
[1729671060377,6.90565,2606.6,2606.0,3.45346]
[1729671060576,3.45278,2606.6,2606.0,3.45346]
[1729671060802,3.45278,2606.6,2606.1,3.4534]
[1729671061189,3.45278,2606.6,2606.0,6.90695]
[1729671061579,3.44527678,2606.7,2606.0,3.45346]
[1729671061915,3.44527678,2606.7,2606.0,4.255016]
[1729671062117,3.45258,2606.8,2606.3,3.45314]
[1729671062327,3.45258,2606.8,2606.1,3.53016006]
[1729671062620,3.45257,2606.8,2606.1,3.45343]
[1729671062777,3.44527678,2607.0,2605.9,1.5621]
[1729671062778,3.45297,2606.5,2605.9,8.46934]
[1729671062984,3.45332,2606.2,2605.8,3.0]
[1729671063217,3.45345,2606.1,2605.7,0.84993618]
[1729671063515,3.45345,2606.1,2605.6,5.0998]
[1729671063716,3.45333,2606.2,2605.7,3.45393]
[1729671063923,6.90704,2606.1,2605.6,1.6458]
[1729671064122,3.4535,2606.1,2605.6,1.6458]
[1729671064425,3.45324,2606.3,2605.6,1.6458]
[1729671064426,3.45324,2606.3,2605.8,3.45374]
[1729671064607,3.45324,2606.3,2605.8,6.90749]
[1729671064794,3.45324,2606.3,2605.8,3.45374]
[1729671065001,3.45324,2606.3,2605.8,6.9075]
[1729671065187,3.4529,2606.5,2605.9,0.07674226]
[1729671065388,3.45304,2606.4,2605.9,3.45365]
[1729671065587,6.90646,2606.3,2605.8,3.45376]
[1729671065817,6.90646,2606.3,2605.6,5.09979]
[1729671065818,3.45331,2606.2,2605.6,5.09979]
[1729671066121,3.4533,2606.2,2605.6,5.09979]
[1729671066283,6.90644,2606.3,2605.7,3.45388]
[1729671066729,3.45343,2606.1,2605.7,3.45388]
[1729671066952,3.45338,2606.2,2605.7,3.45388]
[1729671067137,3.45319,2606.3,2605.7,6.90774]
[1729671067335,1.03514368,2606.3,2605.6,1.6458]
[1729671067536,3.45341,2606.2,2605.6,5.09988]
[1729671067850,3.45345,2606.1,2605.6,5.09988]
[1729671068056,3.45364,2606.0,2605.6,1.6458]
[1729671068419,3.45364,2606.0,2605.5,3.45414]
[1729671068960,3.44527678,2606.4,2605.4,3.45434]
[1729671068961,6.90753,2605.9,2605.4,3.45434]